bitfinex/quotes_SOLUSD_20250308
["timestamp","ask_amount","ask_price","bid_price","bid_amount"]
[1741426523465,0.14216157,139.48,139.46,18.64964886]
[1741426523878,0.14216157,139.48,139.46,39.76591993]
[1741426524084,0.17216157,139.5,139.46,39.76591993]
[1741426524393,0.17216157,139.5,139.48,18.64964886]
[1741426525571,0.17216157,139.5,139.48,80.86581993]
[1741426525572,0.03,139.5,139.48,80.86581993]
[1741426525789,0.03,139.5,139.48,88.03501993]
[1741426525975,0.03,139.5,139.48,59.74954886]
[1741426528486,0.14216157,139.49,139.45,62.21617107]
[1741426528689,21.25843264,139.48,139.44,18.68264886]
[1741426528888,0.14216157,139.46,139.44,0.033]
[1741426529680,0.14216157,139.47,139.44,0.033]
[1741426529877,0.14216157,139.47,139.44,21.14927107]
[1741426530993,0.14216157,139.48,139.44,21.14927107]
[1741426531399,0.14216157,139.48,139.44,0.033]
[1741426532098,21.25843264,139.48,139.44,0.033]
[1741426532480,0.14216157,139.48,139.44,0.033]
[1741426533091,0.14216157,139.47,139.44,0.033]
[1741426533293,21.25843264,139.47,139.44,0.033]
[1741426534301,21.11627107,139.46,139.44,0.033]
[1741426534484,0.14216157,139.45,139.44,0.033]
[1741426534679,21.25843264,139.45,139.44,0.033]
[1741426535279,28.42943264,139.45,139.44,0.033]
[1741426535680,21.25843264,139.45,139.44,0.033]
[1741426535981,0.14216157,139.45,139.44,0.033]
[1741426538606,0.14216157,139.47,139.44,18.68264886]
[1741426538806,21.25843264,139.47,139.44,0.033]
[1741426538983,0.14216157,139.45,139.44,0.033]
[1741426541319,13.66530751,139.47,139.44,0.033]
[1741426541486,0.14216157,139.47,139.44,0.033]
[1741426541897,13.66530751,139.45,139.44,0.033]
[1741426543201,20.83630751,139.45,139.44,0.033]
[1741426545010,0.14216157,139.45,139.44,0.033]
[1741426551115,20.83630751,139.45,139.44,0.033]
[1741426551492,13.66530751,139.45,139.44,0.033]
[1741426551695,0.14216157,139.45,139.44,0.033]
[1741426553022,0.14216157,139.45,139.44,18.68264886]
[1741426554306,0.14216157,139.45,139.44,0.033]
[1741426554494,0.14216157,139.45,139.44,95.52674074]
[1741426554699,0.14216157,139.45,139.44,136.09617856]
[1741426556534,0.14216157,139.45,139.44,59.78254886]
[1741426556999,0.14216157,139.45,139.44,80.61935637]
[1741426558024,0.14216157,139.45,139.44,73.3056948]
[1741426558218,0.14216157,139.45,139.44,59.78254886]
[1741426558415,0.14216157,139.45,139.44,18.68264886]
[1741426559221,0.14216157,139.45,139.44,46.9750938]
[1741426560326,0.14216157,139.45,139.44,18.68264886]
[1741426562711,0.14216157,139.45,139.44,0.033]
[1741426565930,7.31316157,139.45,139.44,0.033]
[1741426566133,28.43410651,139.45,139.44,0.033]
[1741426566432,28.43410651,139.45,139.4,0.033]
[1741426566433,0.14216157,139.42,139.4,0.033]
[1741426566726,71.26310651,139.41,139.4,0.033]
[1741426566909,21.26310651,139.41,139.4,0.033]
[1741426567115,71.26310651,139.41,139.4,0.033]
[1741426568227,21.26310651,139.41,139.4,0.033]
[1741426569527,71.26310651,139.41,139.4,0.033]
[1741426569928,78.43610651,139.41,139.4,0.033]
[1741426570736,86.28990651,139.41,139.4,0.033]
[1741426573732,79.11690651,139.41,139.4,0.033]
[1741426573917,29.11690651,139.41,139.4,0.033]
[1741426576334,21.26310651,139.41,139.4,0.033]
[1741426581342,78.43610651,139.41,139.4,0.033]
[1741426583043,21.26310651,139.41,139.4,0.033]
[1741426586044,28.43610651,139.41,139.4,0.033]
[1741426586743,78.43610651,139.41,139.4,0.033]
[1741426589228,160.73610651,139.41,139.4,0.0001]
[1741426589556,50.14216157,139.38,139.37,0.033]
[1741426589728,71.26310651,139.38,139.37,0.033]
[1741426589929,28.43770651,139.38,139.37,0.033]
[1741426590739,21.26310651,139.38,139.37,0.033]
[1741426590949,0.14216157,139.38,139.37,0.033]
[1741426592557,0.14216157,139.38,139.37,18.68264886]
[1741426593048,0.14216157,139.38,139.37,0.033]
[1741426594860,21.26310651,139.38,139.37,0.033]
[1741426595360,28.43770651,139.38,139.37,0.033]
[1741426597153,0.14216157,139.38,139.37,0.033]
[1741426601440,0.14216157,139.38,139.37,39.94575537]
[1741426601835,0.14216157,139.38,139.37,47.12085537]
[1741426604237,0.14216157,139.38,139.37,46.9786938]
[1741426604554,0.14216157,139.38,139.37,39.8035938]
[1741426605148,0.14216157,139.38,139.37,46.9786938]
[1741426605551,0.14216157,139.38,139.37,47.12085537]
[1741426606439,0.14216157,139.38,139.37,68.24180031]
[1741426606842,0.14216157,139.38,139.37,109.34180031]
[1741426607043,0.14216157,139.38,139.37,115.64180031]
[1741426607367,0.14216157,139.38,139.37,94.52085537]
[1741426607660,0.14216157,139.38,139.37,115.64180031]
[1741426613260,0.14216157,139.38,139.37,94.52085537]
[1741426613847,0.14216157,139.38,139.37,80.9035938]
[1741426614366,0.14216157,139.38,139.37,59.78264886]
[1741426614550,0.14216157,139.38,139.37,0.033]
[1741426615273,7.31676157,139.38,139.37,0.033]
[1741426615750,0.14216157,139.38,139.37,0.033]
[1741426619467,28.43770651,139.38,139.37,0.033]
[1741426620354,7.31676157,139.38,139.37,0.033]
[1741426620656,0.14216157,139.38,139.37,0.033]
[1741426621253,7.31676157,139.38,139.37,0.033]
[1741426621451,28.43770651,139.38,139.37,0.033]
[1741426624568,0.14216157,139.38,139.37,0.033]
[1741426625148,28.43770651,139.38,139.37,0.033]
[1741426629275,20.85898801,139.38,139.37,0.033]
[1741426632273,0.14216157,139.38,139.37,0.033]
[1741426633886,7.31676157,139.38,139.37,0.033]
[1741426634270,20.85898801,139.38,139.37,0.033]
[1741426635185,7.31676157,139.38,139.37,0.033]
[1741426637391,20.85898801,139.38,139.37,0.033]
[1741426638872,7.31676157,139.38,139.37,0.033]
[1741426639068,0.14216157,139.38,139.37,0.033]
[1741426642475,20.85898801,139.38,139.37,0.033]
[1741426644666,20.85898801,139.38,139.36,0.033]
[1741426644667,50.14216157,139.37,139.36,0.033]
[1741426644900,63.68438801,139.37,139.36,0.033]
[1741426646370,63.68438801,139.37,139.3,0.033]
[1741426646371,13.68438801,139.34,139.3,0.033]
[1741426646584,0.14216157,139.32,139.3,0.033]
[1741426646971,0.14216157,139.34,139.3,0.033]
[1741426648195,0.14216157,139.34,139.3,32.2248753]
[1741426648380,0.14216157,139.35,139.32,13.54222644]
[1741426650877,0.14216157,139.37,139.34,12.0]
[1741426652293,0.14216157,139.38,139.34,25.54222644]
[1741426652485,0.14216157,139.38,139.34,32.71882644]
[1741426652997,0.14216157,139.36,139.34,12.0]
[1741426653173,13.68438801,139.36,139.34,12.0]
[1741426654073,7.31826157,139.35,139.34,12.0]
[1741426654275,0.14216157,139.35,139.34,12.0]
[1741426655703,7.31826157,139.35,139.34,12.0]
[1741426655881,0.14216157,139.35,139.34,12.0]
[1741426658096,0.14216157,139.35,139.34,19.1766]
[1741426658402,0.14216157,139.35,139.34,32.71882644]
[1741426659507,0.14216157,139.35,139.34,25.54222644]
[1741426659677,0.14216157,139.35,139.34,12.0]
[1741426661108,0.14216157,139.35,139.34,12.033]
[1741426661291,7.31826157,139.35,139.34,12.033]
[1741426664589,20.86048801,139.35,139.34,12.033]
[1741426666497,0.14216157,139.3,139.26,0.033]
[1741426666710,13.68438801,139.27,139.26,0.033]
[1741426667497,63.68438801,139.27,139.26,0.033]
[1741426668093,20.86458801,139.27,139.26,0.033]
[1741426668409,13.68438801,139.27,139.26,0.033]
[1741426669299,0.14216157,139.27,139.26,0.033]
[1741426669906,0.14216157,139.27,139.26,21.21757784]
[1741426671404,0.14216157,139.27,139.26,0.033]
[1741426683741,0.14216157,139.27,139.26,21.21757784]
[1741426684637,0.14216157,139.27,139.26,81.10938827]
[1741426684942,0.14216157,139.27,139.26,82.70768827]
[1741426685309,0.14216157,139.27,139.26,89.88848827]
[1741426685840,0.14216157,139.27,139.26,89.7463267]
[1741426686131,0.14216157,139.27,139.26,82.5655267]
[1741426686345,0.14216157,139.27,139.26,89.7463267]
[1741426686715,0.14216157,139.27,139.26,80.9672267]
[1741426687913,0.14216157,139.27,139.26,88.1480267]
[1741426688934,0.14216157,139.27,139.26,21.21757784]
[1741426689131,0.14216157,139.27,139.26,0.033]
[1741426692435,20.87631136,139.27,139.26,0.033]
[1741426692924,0.14216157,139.27,139.26,0.033]
[1741426693625,7.32236157,139.27,139.26,0.033]
[1741426694015,20.87631136,139.27,139.26,0.033]
[1741426695655,7.32236157,139.27,139.26,0.033]
[1741426696136,20.87631136,139.27,139.26,0.033]
[1741426696535,0.14216157,139.27,139.26,0.033]
[1741426697425,7.32236157,139.27,139.26,0.033]
[1741426698168,20.87631136,139.27,139.26,0.033]
[1741426701330,50.14216157,139.26,139.25,0.033]
[1741426701533,69.95611136,139.26,139.25,0.033]
[1741426702344,19.95611136,139.26,139.25,0.033]
[1741426702524,69.95611136,139.26,139.25,0.033]
[1741426702723,77.13691136,139.26,139.25,0.033]
[1741426708452,13.58296157,139.26,139.25,0.033]
[1741426708661,6.40216157,139.26,139.25,0.033]
[1741426712345,0.14216157,139.26,139.25,0.033]
[1741426712654,0.14216157,139.28,139.25,0.033]
[1741426712856,0.14216157,139.28,139.26,13.55394979]
[1741426713158,0.03,139.3,139.27,13.55394979]
[1741426713758,0.03,139.3,139.25,66.96394886]
[1741426713759,0.03,139.3,139.26,13.55394979]
[1741426713962,0.03,139.3,139.25,61.86824979]
[1741426714149,0.14216157,139.29,139.25,54.68694979]
[1741426714353,0.14216157,139.29,139.25,41.133]
[1741426716170,7.32136157,139.29,139.25,41.133]
[1741426716544,7.32136157,139.29,139.25,54.68694979]
[1741426716750,7.32136157,139.29,139.25,13.58694979]
[1741426719070,7.35106157,139.3,139.25,13.58694979]
[1741426719673,7.35106157,139.3,139.26,13.55394979]
[1741426720360,7.35106157,139.3,139.25,13.58694979]
[1741426722572,0.17216157,139.3,139.25,13.58694979]
[1741426722892,0.03,139.3,139.29,13.55394979]
[1741426723756,0.03,139.3,139.29,20.73314979]
[1741426729257,0.03,139.3,139.28,13.55394979]
[1741426731586,0.03,139.3,139.27,13.55394979]
[1741426732293,0.17216157,139.3,139.25,0.033]
[1741426732460,0.17216157,139.3,139.25,13.58694979]
[1741426732461,0.14216157,139.29,139.25,13.58694979]
[1741426733491,0.14216157,139.28,139.25,13.58694979]
[1741426734586,0.14216157,139.29,139.25,13.58694979]
[1741426735685,0.17216157,139.3,139.27,13.55394979]
[1741426737167,0.17216157,139.3,139.27,20.73384979]
[1741426737902,0.17216157,139.3,139.27,13.55394979]
[1741426739878,0.17216157,139.3,139.26,20.73454979]
[1741426740894,0.17216157,139.3,139.27,13.55394979]
[1741426741587,0.03,139.3,139.28,13.55394979]
[1741426741787,0.03,139.3,139.29,13.55394979]
[1741426741977,0.03,139.3,139.29,20.73314979]
[1741426742373,0.03,139.3,139.29,80.48279865]
[1741426742592,0.03,139.3,139.29,54.65394979]
[1741426746394,0.03,139.3,139.27,25.82974886]
[1741426746395,0.03,139.3,139.27,32.20359865]
[1741426746597,0.03,139.3,139.26,60.87394979]
[1741426746802,0.14216157,139.28,139.25,0.033]
[1741426747007,0.14216157,139.27,139.25,0.033]
[1741426749693,0.14216157,139.28,139.25,0.033]
[1741426750690,0.14216157,139.29,139.25,0.033]
[1741426752607,13.69611136,139.29,139.25,0.033]
[1741426753989,20.87551136,139.29,139.25,0.033]
[1741426754303,13.69611136,139.26,139.25,0.033]
[1741426755708,19.91611136,139.26,139.25,0.033]
[1741426755897,109.39691136,139.26,139.25,0.033]
[1741426758714,50.14216157,139.24,139.23,0.033]
[1741426758894,63.69611136,139.24,139.23,0.033]
[1741426760312,0.14216157,139.24,139.23,0.033]
[1741426764412,7.32396157,139.24,139.23,0.033]
[1741426765708,0.14216157,139.24,139.23,0.033]
[1741426766016,70.87791136,139.24,139.23,0.033]
[1741426768209,20.87791136,139.24,139.23,0.033]
[1741426769621,7.32396157,139.24,139.23,0.033]
[1741426769826,20.87791136,139.24,139.23,0.033]
[1741426770523,0.14216157,139.24,139.23,0.033]
[1741426771604,0.14216157,139.25,139.21,12.89994979]
[1741426771804,0.14216157,139.25,139.21,20.08304979]
[1741426772424,0.14216157,139.25,139.21,12.89994979]
[1741426772610,13.69611136,139.25,139.2,8.7452]
[1741426775142,13.69611136,139.25,139.2,22.29914979]
[1741426776443,0.14216157,139.25,139.2,22.29914979]
[1741426777740,0.14216157,139.25,139.24,13.55394979]
[1741426778042,0.03,139.26,139.23,13.55394979]
[1741426778631,0.03,139.26,139.22,13.55394979]
[1741426779523,0.03,139.26,139.23,20.73624979]
[1741426780132,0.03,139.25,139.23,20.73624979]
[1741426780333,0.03,139.25,139.24,13.55394979]
[1741426781444,0.03,139.25,139.23,20.73624979]
[1741426783148,0.03,139.25,139.24,13.55394979]
[1741426783648,0.03,139.26,139.25,1.73116157]
[1741426783851,0.03,139.26,139.25,75.03476022]
[1741426784953,0.03,139.26,139.25,82.21606022]
[1741426786454,0.0001,139.26,139.25,82.21606022]
[1741426786673,0.03,139.3,139.29,38.79181043]
[1741426786958,0.03,139.3,139.29,100.62496022]
[1741426787266,0.03,139.37,139.29,100.62496022]
[1741426787455,0.03,139.37,139.34,13.55394979]
[1741426788538,0.03,139.37,139.31,41.24216157]
[1741426788539,0.03,139.37,139.33,13.55394979]
[1741426790161,0.03,139.37,139.34,13.55394979]
[1741426792658,0.03,139.37,139.33,13.55394979]
[1741426794472,0.03,139.37,139.32,13.55394979]
[1741426795055,0.03,139.37,139.33,13.55394979]
[1741426798447,13.55394979,139.36,139.31,13.55394979]
[1741426798668,0.14216157,139.35,139.31,13.55394979]
[1741426799176,13.72611136,139.37,139.31,13.55394979]
[1741426799564,0.17216157,139.37,139.32,13.55394979]
[1741426801372,0.14216157,139.36,139.34,13.55394979]
[1741426802574,0.03,139.37,139.34,13.55394979]
[1741426802993,0.03,139.37,139.35,13.55394979]
[1741426807487,0.03,139.37,139.36,13.55394979]
[1741426807668,0.03,139.37,139.36,32.20359865]
[1741426808580,0.03,139.37,139.36,73.44576022]
[1741426808786,0.03,139.37,139.36,80.62136022]
[1741426810780,0.03,139.37,139.36,73.30359865]
[1741426811867,0.03,139.37,139.36,32.20359865]
[1741426815191,0.03,139.37,139.36,39.37919865]
[1741426815688,0.03,139.37,139.36,39.52136022]
[1741426817674,0.03,139.37,139.36,80.62136022]
[1741426820083,0.03,139.37,139.36,73.44576022]
[1741426825208,0.03,139.37,139.36,80.62136022]
[1741426826114,0.03,139.37,139.36,80.47919865]
[1741426826395,0.03,139.37,139.36,54.65394979]
[1741426826777,0.17216157,139.37,139.32,41.1]
[1741426826979,13.72611136,139.37,139.32,13.55394979]
[1741426827198,13.72611136,139.37,139.32,20.73154979]
[1741426827402,0.17216157,139.37,139.33,13.55394979]
[1741426828498,7.34756157,139.37,139.33,13.55394979]
[1741426830001,0.14216157,139.34,139.3,0.033]
[1741426830300,0.14216157,139.32,139.3,0.033]
[1741426831002,7.31996157,139.32,139.3,0.033]
[1741426832004,0.14216157,139.32,139.3,0.033]
[1741426833482,7.31986157,139.32,139.3,0.033]
[1741426834804,0.14216157,139.32,139.3,0.033]
[1741426837804,7.31996157,139.32,139.3,0.033]
[1741426838789,0.14216157,139.32,139.3,0.033]
[1741426839222,0.17216157,139.32,139.3,0.033]
[1741426839702,7.34986157,139.32,139.3,0.033]
[1741426840685,20.90381136,139.32,139.3,0.033]
[1741426840888,13.69611136,139.31,139.3,0.033]
[1741426841085,63.69611136,139.31,139.3,0.033]
[1741426841313,7.32136157,139.29,139.28,0.033]
[1741426841491,20.87531136,139.29,139.28,0.033]
[1741426842089,0.14216157,139.29,139.28,0.033]
[1741426850220,7.32136157,139.29,139.28,0.033]
[1741426850399,20.87531136,139.29,139.28,0.033]
[1741426853218,121.82496022,139.29,139.28,0.033]
[1741426853399,129.93016022,139.29,139.28,0.033]
[1741426854117,0.14216157,139.25,139.2,0.033]
[1741426854293,13.69611136,139.23,139.2,0.033]
[1741426854617,0.14216157,139.21,139.2,0.033]
[1741426855006,13.69611136,139.21,139.2,0.033]
[1741426855701,20.87941136,139.21,139.2,0.033]
[1741426855895,0.14216157,139.21,139.2,0.033]
[1741426856418,0.14216157,139.21,139.2,13.58694979]
[1741426857438,0.14216157,139.21,139.2,0.033]
[1741426861625,7.32546157,139.21,139.2,0.033]
[1741426861826,20.87941136,139.21,139.2,0.033]
[1741426863347,70.87941136,139.21,139.2,0.033]
[1741426864409,78.83961136,139.21,139.2,0.033]
[1741426867621,179.78926022,139.21,139.2,0.033]
[1741426868518,18.79181043,139.2,139.19,0.033]
[1741426868722,32.34576022,139.2,139.19,0.0001]
[1741426870815,20.88001136,139.2,139.19,0.0001]
[1741426871037,13.69611136,139.2,139.19,0.0001]
[1741426871424,20.88001136,139.2,139.19,0.0001]
[1741426872540,0.14216157,139.2,139.19,0.0001]
[1741426873039,0.14216157,139.21,139.19,0.0001]
[1741426873937,13.69611136,139.23,139.19,0.0001]
[1741426874835,20.87881136,139.23,139.19,0.0001]
[1741426875629,0.14216157,139.21,139.19,0.0001]
[1741426876941,0.14216157,139.22,139.19,0.0001]
[1741426877118,7.32496157,139.22,139.19,0.0001]
[1741426877320,13.69611136,139.2,139.19,0.0001]
[1741426877628,63.69611136,139.2,139.19,0.0001]
[1741426877941,164.64576022,139.2,139.19,0.0001]
[1741426879039,89.52966022,139.2,139.19,0.0001]
[1741426879336,97.19966112,139.2,139.19,0.0001]
[1741426879722,68.79181043,139.18,139.17,0.0001]
[1741426879931,96.21576112,139.18,139.17,0.0001]
[1741426880744,103.40066112,139.18,139.17,0.0001]
[1741426884733,60.24946157,139.09,138.94,1.5263]
[1741426885043,60.24946157,139.09,138.96,21.22395069]
[1741426885044,0.14216157,139.02,138.96,21.22395069]
[1741426885241,27.72611226,139.02,138.96,21.22395069]
[1741426885547,6.50216157,139.02,138.96,21.22395069]
[1741426886041,6.50216157,139.02,138.98,21.22395069]
[1741426887427,27.72611226,139.02,138.96,21.22395069]
[1741426887749,34.91941226,139.02,138.96,21.22395069]
[1741426888740,27.72611226,139.02,138.96,21.22395069]
[1741426890122,0.14216157,139.0,138.95,21.22395069]
[1741426890329,21.36611226,139.0,138.94,22.75025069]
[1741426890629,0.14216157,139.0,138.95,21.22395069]
[1741426890832,21.36611226,139.0,138.94,22.75025069]
[1741426891438,0.14216157,139.0,138.95,21.22395069]
[1741426892158,0.14216157,139.0,138.96,21.22395069]
[1741426893852,0.14216157,139.01,138.97,21.22395069]
[1741426896258,0.14216157,139.01,138.96,21.22395069]
[1741426897449,21.36611226,139.01,138.94,8.7231]
[1741426897663,21.36611226,139.01,138.95,21.22395069]
[1741426898262,28.55981226,139.01,138.95,21.22395069]
[1741426899248,21.36611226,139.01,138.95,21.22395069]
[1741426899566,0.14216157,138.99,138.95,21.22395069]
[1741426899739,0.14216157,138.99,138.94,1.5263]
[1741426899740,0.14216157,138.99,138.94,22.75025069]
[1741426899939,21.36611226,138.99,138.94,22.78325069]
[1741426900157,21.36611226,138.99,138.94,21.25695069]
[1741426900367,71.36611226,138.99,138.94,0.033]
[1741426901360,0.14216157,138.97,138.94,0.033]
[1741426901851,0.14216157,138.95,138.94,0.033]
[1741426902053,0.14216157,138.96,138.94,0.033]
[1741426902547,71.36611226,138.96,138.94,0.033]
[1741426903037,0.14216157,138.96,138.94,0.033]
[1741426904663,21.36611226,138.96,138.94,0.033]
[1741426905440,0.14216157,138.96,138.94,0.033]
[1741426906265,21.36611226,138.96,138.94,0.033]
[1741426906463,21.36611226,138.95,138.94,0.033]
[1741426907753,7.33896157,138.95,138.94,0.033]
[1741426907947,0.14216157,138.95,138.94,0.033]
[1741426908358,28.56291226,138.95,138.94,0.033]
[1741426909538,7.33896157,138.95,138.94,0.033]
[1741426910039,0.14216157,138.95,138.94,0.033]
[1741426920064,28.56291226,138.95,138.94,0.033]
[1741426921672,7.33896157,138.95,138.94,0.033]
[1741426927478,0.14216157,138.95,138.94,0.033]
[1741426929454,0.14216157,138.95,138.94,13.65233092]
[1741426930283,0.14216157,138.95,138.94,0.033]
[1741426931267,0.14216157,138.95,138.94,13.65233092]
[1741426934085,0.14216157,138.95,138.94,20.84963092]
[1741426935680,0.14216157,138.95,138.94,0.033]
[1741426939775,0.14216157,138.95,138.94,13.65233092]
[1741426940289,0.14216157,138.95,138.94,0.033]
[1741426941492,0.14216157,138.95,138.94,80.74144135]
[1741426943392,0.14216157,138.95,138.94,7.2303]
[1741426944308,0.14216157,138.95,138.94,20.84963092]
[1741426950007,0.14216157,138.95,138.94,7.2303]
[1741426950703,0.14216157,138.95,138.94,0.033]
[1741426957088,0.14216157,138.95,138.94,20.84963092]
[1741426959591,0.14216157,138.95,138.94,0.033]
[1741426960004,0.14216157,138.95,138.94,20.84963092]
[1741426960990,0.14216157,138.95,138.94,39.64144135]
[1741426961397,0.14216157,138.95,138.94,80.74144135]
[1741426963323,0.14216157,138.95,138.94,61.94963092]
[1741426964814,0.14216157,138.95,138.94,80.74144135]
[1741426969017,0.14216157,138.95,138.94,48.3303]
[1741426970013,0.14216157,138.95,138.94,61.94963092]
[1741426972131,0.14216157,138.95,138.94,20.84963092]
[1741426975030,0.14216157,138.95,138.94,39.64144135]
[1741426975536,0.14216157,138.95,138.94,80.74144135]
[1741426976419,7.8362,139.02,138.95,18.79181043]
[1741426976618,7.8362,139.02,138.96,13.61933092]
[1741426977331,7.8362,139.02,138.98,13.61933092]
[1741426977522,13.61933092,139.03,138.98,13.61933092]
[1741426978410,0.14216157,139.02,138.98,13.61933092]
[1741426978914,0.14216157,139.02,138.97,13.61933092]
[1741426979110,0.14216157,139.0,138.96,54.71933092]
[1741426981033,0.14216157,139.01,138.96,54.71933092]
[1741426981532,13.76149249,139.01,138.96,54.71933092]
[1741426982112,0.14216157,139.01,138.96,61.91543092]
[1741426982631,0.14216157,139.01,138.96,20.81543092]
[1741426983017,0.14216157,139.01,138.99,13.61933092]
[1741426983334,7.33446157,139.04,139.0,13.61933092]
[1741426983738,7.33446157,139.04,138.97,13.61933092]
[1741426983932,0.14216157,139.02,138.97,13.61933092]
[1741426984113,7.33536157,139.02,138.97,13.61933092]
[1741426984523,0.14216157,139.02,138.97,13.61933092]
[1741426984724,13.76149249,139.04,138.97,13.61933092]
[1741426984928,0.14216157,139.02,138.97,13.61933092]
[1741426985130,13.76149249,139.02,138.96,13.61933092]
[1741426985334,0.14216157,139.0,138.95,80.56557978]
[1741426985722,8.14526157,139.0,138.95,61.91593092]
[1741426985924,21.76459249,139.0,138.95,41.1]
[1741426987440,8.14526157,139.0,138.95,41.1]
[1741426988036,8.14526157,139.0,138.95,61.91603092]
[1741426988227,8.14526157,139.0,138.96,13.61933092]
[1741426988822,8.14526157,139.0,138.95,61.91603092]
[1741426990118,8.14526157,139.0,138.95,20.81603092]
[1741426990530,8.14526157,139.0,138.96,13.61933092]
[1741426991138,0.14216157,139.0,138.97,13.61933092]
[1741426991323,0.14216157,139.02,138.98,13.61933092]
[1741426991919,0.14216157,139.02,138.99,13.61933092]
[1741426992119,0.14216157,139.02,139.0,7.1942]
[1741426992838,0.14216157,139.02,138.99,20.81383092]
[1741426993044,0.14216157,139.02,138.97,13.76149249]
[1741426993336,20.95469249,139.02,138.97,7.1957]
[1741426993538,0.14216157,139.0,138.96,41.1]
[1741426993841,13.76149249,139.0,138.96,41.1]
[1741426994338,20.95589249,139.0,138.96,41.1]
[1741426995335,20.95589249,139.0,138.94,61.94943092]
[1741426995553,0.14216157,138.98,138.94,7.2301]
[1741426996246,0.14216157,138.98,138.94,0.033]
[1741426997435,7.33766157,138.98,138.94,13.65233092]
[1741426997634,7.33766157,138.98,138.94,0.033]
[1741426998742,0.14216157,138.96,138.94,0.033]
[1741426998954,13.76149249,138.96,138.94,0.033]
[1741426999622,13.76149249,138.95,138.94,0.033]
[1741427000919,20.95829249,138.95,138.94,0.033]
[1741427001126,27.21829249,138.95,138.94,0.033]
[1741427001743,13.59896157,138.95,138.94,0.033]
[1741427001950,27.21829249,138.95,138.94,0.033]
[1741427003041,0.14216157,138.94,138.88,20.0]
[1741427003247,0.14216157,138.91,138.87,22.96838582]
[1741427004434,0.14216157,138.92,138.88,13.61933092]
[1741427004839,13.76149249,138.92,138.87,2.1482549]
[1741427005338,0.14216157,138.93,138.89,13.61933092]
[1741427005736,0.14216157,138.93,138.88,13.61933092]
[1741427006036,0.14216157,138.92,138.88,13.61933092]
[1741427006250,13.76149249,138.92,138.87,9.3491549]
[1741427006646,0.14216157,138.89,138.87,2.1482549]
[1741427007556,0.14216157,138.9,138.87,9.3491549]
[1741427008139,13.76149249,138.91,138.87,2.1482549]
[1741427008346,0.14216157,138.89,138.87,2.1482549]
[1741427008745,0.14216157,138.9,138.87,2.1482549]
[1741427009439,0.14216157,138.89,138.87,2.1482549]
[1741427010258,0.14216157,138.9,138.87,2.1482549]
[1741427010431,0.14216157,138.9,138.87,9.3490549]
[1741427011344,0.14216157,138.91,138.87,9.3490549]
[1741427011539,13.76149249,138.91,138.87,2.1482549]
[1741427012545,20.96039249,138.91,138.87,2.1482549]
[1741427012937,0.14216157,138.89,138.87,2.1482549]
[1741427013662,13.76149249,138.88,138.87,2.1482549]
[1741427015763,50.14216157,138.88,138.87,2.1482549]
[1741427016066,0.14216157,138.85,138.81,0.033]
[1741427016257,13.76149249,138.82,138.81,0.033]
[1741427016460,0.14216157,138.82,138.81,0.033]
[1741427022375,28.66653334,138.82,138.81,0.033]
[1741427027861,47.3161822,138.82,138.81,0.033]
[1741427028058,76.32415397,138.82,138.81,0.033]
[1741427028658,158.62415397,138.82,138.81,0.033]
[1741427029173,158.62415397,138.82,138.81,0.0001]
[1741427029386,0.14216157,138.78,138.71,21.32087177]
[1741427029673,50.0,138.79,138.7,21.32087177]
[1741427029674,0.14216157,138.74,138.7,21.32087177]
[1741427030269,0.14216157,138.73,138.67,0.033]
[1741427030577,0.14216157,138.73,138.69,21.32087177]
[1741427031167,0.14216157,138.74,138.69,21.32087177]
[1741427031369,0.14216157,138.74,138.68,7.2108]
[1741427031370,7.6871,138.73,138.68,7.2108]
[1741427031569,50.14216157,138.68,138.67,0.033]
[1741427031752,50.14216157,138.68,138.57,23.43789847]
[1741427031753,0.14216157,138.62,138.57,23.43789847]
[1741427031953,0.14216157,138.62,138.57,43.2170267]
[1741427032154,0.14216157,138.62,138.6,20.0]
[1741427032361,0.14216157,138.63,138.58,62.42087177]
[1741427032567,0.14216157,138.63,138.58,69.63667177]
[1741427033461,0.14216157,138.64,138.6,21.32087177]
[1741427033658,0.14216157,138.64,138.59,18.79181043]
[1741427033973,0.14216157,138.66,138.59,18.79181043]